bitfinex/quotes_BTCUSD_20240730
["timestamp","ask_amount","ask_price","bid_price","bid_amount"]
[1722374664418,0.34873517,66109.0,66108.0,0.1426]
[1722374666440,0.27895912,66109.0,66108.0,0.1426]
[1722374666644,0.20808083,66109.0,66108.0,0.1426]
[1722374666850,0.34368255,66109.0,66108.0,0.1426]
[1722374667266,0.34368255,66109.0,66108.0,0.1569513]
[1722374667475,0.3080729,66109.0,66108.0,0.1569513]
[1722374667705,0.20926783,66109.0,66108.0,0.1426]
[1722374667907,0.17247118,66109.0,66108.0,0.1426]
[1722374668106,0.24487576,66109.0,66108.0,0.1426]
[1722374668317,0.34487576,66109.0,66108.0,0.1426]
[1722374669746,0.34528928,66109.0,66108.0,0.1426]
[1722374670813,0.34538282,66109.0,66108.0,0.1426]
[1722374672988,0.20976515,66109.0,66108.0,0.1426]
[1722374674155,0.17247118,66109.0,66108.0,0.1426]
[1722374674358,0.20984278,66109.0,66108.0,0.1426]
[1722374677551,0.20992776,66109.0,66108.0,0.1426]
[1722374680819,0.21073143,66109.0,66108.0,0.1426]
[1722374681764,0.11073143,66109.0,66108.0,0.1426]
[1722374681977,0.11073143,66109.0,66108.0,0.143513]
[1722374683876,0.07247118,66109.0,66108.0,0.143513]
[1722374684066,0.11051828,66109.0,66108.0,0.143513]
[1722374684267,0.11051842,66109.0,66108.0,0.143513]
[1722374687222,0.07247118,66109.0,66108.0,0.143513]
[1722374687406,0.11033906,66109.0,66108.0,0.143513]
[1722374690584,0.07247118,66109.0,66108.0,0.143513]
[1722374690736,0.11005829,66109.0,66108.0,0.143513]
[1722374694150,0.10999312,66109.0,66108.0,0.143513]
[1722374698286,0.10999312,66109.0,66108.0,0.1450672]
[1722374698487,0.10999312,66109.0,66108.0,0.143513]
[1722374698941,0.10999312,66109.0,66108.0,0.1450672]
[1722374700450,0.001,66109.0,66108.0,1.20696429]
[1722374700646,0.10976525,66109.0,66108.0,0.143513]
[1722374701035,0.10976525,66109.0,66108.0,0.597315]
[1722374701036,0.03824066,66109.0,66108.0,0.597315]
[1722374701439,0.03724066,66109.0,66108.0,0.597315]
[1722374701745,0.11316131,66112.0,66110.0,0.229963]
[1722374701947,0.10837421,66111.0,66110.0,0.143]
[1722374702549,0.07124238,66111.0,66110.0,0.294263]
[1722374702745,0.1083742,66111.0,66110.0,0.294263]
[1722374702969,0.1083742,66111.0,66110.0,0.143]
[1722374703980,0.10834181,66111.0,66110.0,0.1475542]
[1722374704154,0.10834181,66111.0,66110.0,0.143]
[1722374704557,0.22246805,66111.0,66110.0,0.146]
[1722374704762,0.22246805,66111.0,66110.0,0.14705197]
[1722374705812,0.22246805,66111.0,66110.0,0.0673]
[1722374706025,0.10939846,66111.0,66110.0,0.0673]
[1722374706903,0.10839846,66111.0,66110.0,0.0643]
[1722374707064,0.10939846,66111.0,66110.0,0.0643]
[1722374707604,0.10839846,66111.0,66110.0,0.0643]
[1722374707824,0.10939846,66111.0,66110.0,0.0643]
[1722374708170,0.10939846,66111.0,66110.0,0.1455]
[1722374709112,0.22263327,66111.0,66110.0,0.296763]
[1722374709317,0.07224238,66111.0,66110.0,0.296763]
[1722374709474,0.10974497,66111.0,66110.0,0.1455]
[1722374710075,0.10974497,66111.0,66110.0,0.599289]
[1722374710424,0.10974497,66111.0,66110.0,0.296763]
[1722374710831,0.10974497,66111.0,66110.0,0.2983172]
[1722374711249,0.10974497,66111.0,66110.0,0.70008432]
[1722374711429,0.10974497,66111.0,66110.0,0.69853012]
[1722374711630,0.10974497,66111.0,66110.0,0.39600412]
[1722374711848,0.10974497,66111.0,66110.0,0.69853012]
[1722374712508,0.07224238,66111.0,66110.0,0.69853012]
[1722374712626,0.1113061,66111.0,66110.0,0.69853012]
[1722374712825,0.1113061,66111.0,66110.0,0.599289]
[1722374713433,0.04006372,66111.0,66110.0,0.599289]
[1722374714403,0.04006372,66111.0,66110.0,0.600202]
[1722374714952,0.04006372,66111.0,66110.0,0.902728]
[1722374715808,0.04049064,66111.0,66110.0,0.902728]
[1722374716336,0.04044751,66111.0,66110.0,0.902728]
[1722374717659,0.0378815,66111.0,66110.0,0.902728]
[1722374717832,0.11320758,66115.0,66113.0,0.151254]
[1722374718104,0.10435084,66115.0,66114.0,0.0631]
[1722374718274,0.0999302,66116.0,66114.0,0.1532508]
[1722374718477,0.1358491,66122.0,66114.0,0.0631]
[1722374718478,0.1,66121.0,66114.0,0.0631]
[1722374719090,0.07049885,66120.0,66114.0,0.0631]
[1722374721080,0.07449885,66120.0,66114.0,0.0631]
[1722374721253,0.07049885,66120.0,66114.0,0.1532508]
[1722374721454,0.07049885,66120.0,66115.0,0.0778]
[1722374722654,0.07049885,66120.0,66116.0,0.0602]
[1722374723205,0.07049885,66120.0,66116.0,0.05858267]
[1722374725556,0.03897746,66119.0,66116.0,0.05858267]
[1722374725755,0.1094763,66118.0,66116.0,0.05858267]
[1722374725955,0.03897745,66117.0,66116.0,0.05858267]
[1722374726179,0.10959069,66117.0,66116.0,0.05858267]
[1722374727472,0.11059069,66117.0,66116.0,0.05858267]
[1722374729091,0.11073742,66117.0,66116.0,0.05858267]
[1722374731380,0.22384813,66117.0,66116.0,0.57134494]
[1722374731585,0.22384813,66117.0,66116.0,0.51232967]
[1722374732020,0.11073742,66117.0,66116.0,0.51232967]
[1722374732398,0.2228513,66117.0,66116.0,0.51232967]
[1722374732596,0.10976458,66117.0,66116.0,0.20983167]
[1722374732805,0.22285099,66117.0,66116.0,0.20983167]
[1722374733257,0.10976458,66117.0,66116.0,0.20983167]
[1722374733463,0.10976458,66117.0,66116.0,0.29909744]
[1722374735569,0.07161324,66117.0,66116.0,0.29909744]
[1722374735744,0.10979338,66117.0,66116.0,0.29909744]
[1722374736107,0.17370925,66128.0,66124.0,0.1429]
[1722374736306,0.060629,66128.0,66127.0,0.238424]
[1722374736677,0.00083,66131.0,66130.0,0.151217]
[1722374736805,0.06984226,66131.0,66130.0,0.151217]
[1722374737040,0.06984226,66131.0,66130.0,0.217417]
[1722374737205,0.06984226,66131.0,66130.0,0.60911677]
[1722374737414,0.06984226,66131.0,66130.0,0.69051677]
[1722374739681,0.07084226,66131.0,66130.0,0.69651677]
[1722374740469,0.07084226,66131.0,66130.0,0.99895077]
[1722374740670,0.00183,66131.0,66130.0,1.08615077]
[1722374741419,0.00183,66131.0,66130.0,1.08015077]
[1722374741420,0.00083,66131.0,66130.0,1.08015077]
[1722374742945,0.00183,66131.0,66130.0,1.08915077]
[1722374744340,0.00083,66131.0,66130.0,1.08015077]
[1722374744544,0.00183,66131.0,66130.0,1.09015077]
[1722374744745,0.00183,66131.0,66130.0,1.08015077]
[1722374744746,0.00083,66131.0,66130.0,1.08015077]
[1722374746087,0.00083,66131.0,66130.0,1.08515077]
[1722374746088,0.00183,66131.0,66130.0,1.08515077]
[1722374747109,0.00183,66131.0,66130.0,1.38758477]
[1722374761111,0.00183,66131.0,66130.0,1.70001877]
[1722374762073,0.00183,66131.0,66130.0,1.70201877]
[1722374762859,0.00083,66131.0,66130.0,1.69701877]
[1722374763263,0.00183,66131.0,66130.0,1.70201877]
[1722374763721,0.00083,66131.0,66130.0,1.69701877]
[1722374763951,0.00183,66131.0,66130.0,1.70201877]
[1722374769791,0.00083,66131.0,66130.0,1.69701877]
[1722374770236,0.00183,66131.0,66130.0,1.71101877]
[1722374770895,0.00183,66131.0,66130.0,1.83670554]
[1722374771096,0.00083,66131.0,66130.0,1.82270554]
[1722374771206,0.00083,66131.0,66130.0,1.82470554]
[1722374771412,0.00183,66131.0,66130.0,1.69901877]
[1722374771614,0.00083,66131.0,66130.0,1.69701877]
[1722374772284,0.00083,66131.0,66130.0,1.82270395]
[1722374773118,0.00083,66131.0,66130.0,1.71101877]
[1722374773320,0.00183,66131.0,66130.0,1.74135877]
[1722374773475,0.00183,66131.0,66130.0,1.72735877]
[1722374773690,0.00283,66131.0,66130.0,1.74135877]
[1722374774002,0.073308,66144.0,66143.0,0.755937]
[1722374774207,0.14157716,66144.0,66143.0,0.755937]
[1722374774454,0.073308,66144.0,66143.0,1.058312]
[1722374774657,0.06529216,66144.0,66143.0,1.058312]
[1722374775437,0.061,66148.0,66147.0,0.75589]
[1722374775689,0.16259259,66148.0,66147.0,0.75589]
[1722374776939,0.16259259,66148.0,66142.0,0.0872]
[1722374777158,0.10187828,66147.0,66146.0,0.453541]
[1722374777461,0.17782418,66147.0,66146.0,0.453541]
[1722374777642,0.14338339,66147.0,66146.0,0.754902]
[1722374777843,0.1778188,66147.0,66146.0,0.754902]
[1722374778042,0.1778188,66147.0,66146.0,0.452541]
[1722374778266,0.1778188,66147.0,66146.0,0.528033]
[1722374778504,0.1788188,66147.0,66146.0,0.541033]
[1722374778740,0.1788188,66147.0,66146.0,0.843394]
[1722374778974,0.14438339,66147.0,66146.0,0.843394]
[1722374779390,0.14438339,66147.0,66146.0,0.541033]
[1722374779597,0.14438339,66147.0,66146.0,0.843394]
[1722374781086,0.14438339,66147.0,66146.0,0.767902]
[1722374783896,0.1442206,66147.0,66146.0,0.767902]
[1722374789020,0.0680206,66147.0,66146.0,0.867902]
[1722374790989,0.001,66147.0,66146.0,1.170263]
[1722374791190,0.001,66147.0,66146.0,1.315763]
[1722374792757,0.001,66147.0,66146.0,1.235163]
[1722374803684,0.09126703,66147.0,66146.0,0.932802]
[1722374803880,0.001,66147.0,66146.0,0.932802]
[1722374804112,0.001,66147.0,66146.0,1.34619234]
[1722374807911,0.001,66147.0,66146.0,1.28129234]
[1722374810224,0.001,66147.0,66146.0,1.28220534]
[1722374810439,0.00183,66147.0,66146.0,1.28220534]
[1722374813533,0.09214115,66147.0,66146.0,1.28220534]
[1722374813903,0.09216213,66147.0,66146.0,1.28220534]
[1722374817202,0.0921784,66147.0,66146.0,1.28220534]
[1722374817414,0.09215124,66147.0,66146.0,1.28220534]
[1722374818355,0.00183,66147.0,66146.0,1.28220534]
[1722374823192,0.11474541,66147.0,66146.0,1.28220534]
[1722374825245,0.18176601,66147.0,66146.0,0.566454]
[1722374825465,0.24439374,66147.0,66146.0,0.868815]
[1722374825670,0.32411024,66147.0,66146.0,0.868815]
[1722374825874,0.26221264,66147.0,66146.0,0.868815]
[1722374826288,0.26221694,66147.0,66146.0,0.868815]
[1722374826494,0.11479634,66147.0,66146.0,0.868815]
[1722374826692,0.11479634,66147.0,66146.0,0.928815]
[1722374826899,0.11479634,66147.0,66146.0,1.231176]
[1722374827143,0.00183,66147.0,66146.0,1.231176]
[1722374827317,0.11479634,66147.0,66146.0,1.231176]
[1722374827523,0.00183,66147.0,66146.0,1.231176]
[1722374828583,0.00183,66147.0,66146.0,1.533537]
[1722374828786,0.00183,66147.0,66146.0,1.45084324]
[1722374828988,0.00183,66147.0,66146.0,1.48118324]
[1722374829205,0.00183,66147.0,66146.0,1.78354424]
[1722374829432,0.00183,66147.0,66146.0,1.80654424]
[1722374830392,0.00083,66147.0,66146.0,1.79354424]
[1722374830813,0.00083,66147.0,66146.0,1.80754424]
[1722374831010,0.00083,66147.0,66146.0,1.79354424]
[1722374831252,0.00083,66147.0,66146.0,1.80754424]
[1722374831573,0.00083,66147.0,66146.0,1.681877]
[1722374832251,0.00083,66147.0,66146.0,1.80753498]
[1722374832654,0.00083,66147.0,66146.0,1.80753382]
[1722374835821,0.00083,66147.0,66146.0,1.681877]
[1722374836035,0.00083,66147.0,66146.0,1.80753282]
[1722374836933,0.00083,66147.0,66146.0,1.80753281]
[1722374837353,0.00083,66147.0,66146.0,1.681877]
[1722374838025,0.00083,66147.0,66146.0,1.769077]
[1722374839478,0.00083,66147.0,66146.0,2.40157104]
[1722374839684,0.00083,66147.0,66146.0,2.52721615]
[1722374840594,0.00083,66147.0,66146.0,2.51321615]
[1722374841268,0.00083,66147.0,66146.0,2.52721615]
[1722374841822,0.00083,66147.0,66146.0,2.62721615]
[1722374841976,0.00083,66147.0,66146.0,2.60521615]
[1722374842182,0.00083,66147.0,66146.0,2.62721615]
[1722374842759,0.00083,66147.0,66146.0,2.62720909]
[1722374842970,0.00083,66147.0,66146.0,2.50157104]
[1722374843182,0.00083,66147.0,66146.0,2.62720909]
[1722374843387,0.0806,66165.0,66164.0,1.057976]
[1722374843515,0.09017085,66174.0,66173.0,0.453357]
[1722374843716,0.15405015,66174.0,66173.0,0.453357]
[1722374844195,0.30035015,66174.0,66173.0,0.453357]
[1722374844314,0.2101793,66174.0,66173.0,0.5376367]
[1722374845037,0.21681151,66174.0,66173.0,0.5416367]
[1722374845383,0.1463,66174.0,66173.0,1.1461127]
[1722374847337,0.0804,66174.0,66173.0,1.1421127]
[1722374847538,0.0804,66174.0,66173.0,1.1461127]
[1722374847745,0.0804,66174.0,66173.0,1.1421127]
[1722374848130,0.0804,66174.0,66173.0,1.1561127]
[1722374848905,0.00852,66175.0,66174.0,1.057815]
[1722374849106,0.00852,66175.0,66174.0,1.18954835]
[1722374850299,0.00852,66175.0,66174.0,1.20354835]
[1722374853144,0.00852,66175.0,66174.0,1.35044835]
[1722374853346,0.0782,66191.0,66174.0,1.35044835]
[1722374853347,1e-06,66204.0,66197.0,0.0666]
[1722374853547,0.00852,66208.0,66207.0,0.755205]
[1722374853861,0.00704,66211.0,66210.0,0.914672]
[1722374854018,0.00704,66211.0,66199.0,0.09089]
[1722374854019,0.08524,66211.0,66197.0,0.0666]
[1722374854240,0.08524,66211.0,66194.0,0.0872]
[1722374854501,0.08524,66211.0,66205.0,0.151045]
[1722374854502,0.07534716,66206.0,66205.0,0.151045]
[1722374854698,0.13563147,66206.0,66205.0,0.151045]
[1722374854946,0.13563147,66206.0,66204.0,0.151048]
[1722374855103,0.08524,66211.0,66206.0,0.0015542]
[1722374855988,0.08524,66211.0,66206.0,0.1525972]
[1722374856171,0.08524,66211.0,66207.0,0.15104]
[1722374856352,0.0599421,66210.0,66207.0,0.15104]
[1722374856547,0.0599421,66210.0,66208.0,0.0015542]
[1722374857128,0.0599421,66210.0,66207.0,0.15104]
[1722374857398,0.0599421,66210.0,66208.0,0.151038]
[1722374857603,0.0599421,66210.0,66209.0,0.0015542]
[1722374857932,0.0599421,66210.0,66208.0,0.0085542]
[1722374858136,0.0599421,66210.0,66208.0,0.1595932]
[1722374858357,0.0599421,66210.0,66208.0,0.1525932]
[1722374858535,0.0599421,66210.0,66208.0,0.1535932]
[1722374859896,0.0599421,66210.0,66208.0,0.1525922]
[1722374860114,0.0599421,66210.0,66208.0,0.1595922]
[1722374860403,0.0599421,66210.0,66208.0,0.1525922]
[1722374860783,0.0599421,66210.0,66208.0,0.1535922]
[1722374861218,0.0599421,66210.0,66209.0,0.151036]
[1722374861416,0.0599421,66210.0,66208.0,0.1595922]
[1722374861945,0.0599421,66210.0,66208.0,0.1525922]
[1722374862161,0.0599421,66210.0,66208.0,0.0015542]
[1722374862333,0.0599421,66210.0,66208.0,0.151039]
[1722374862713,0.0599421,66210.0,66209.0,0.0015542]
[1722374863529,0.0599421,66210.0,66208.0,0.1525922]
[1722374863706,0.0599421,66210.0,66209.0,0.151036]
[1722374863906,0.0599421,66210.0,66208.0,0.1595922]
[1722374864476,0.08524,66211.0,66208.0,0.0085542]
[1722374864693,0.14506805,66211.0,66210.0,0.453103]
[1722374865333,0.14506805,66211.0,66210.0,0.45451955]
[1722374866169,0.08524,66211.0,66210.0,0.755172]
[1722374866374,0.00704,66211.0,66210.0,0.755172]
[1722374867528,0.00704,66211.0,66210.0,0.762172]
[1722374867856,0.00704,66211.0,66210.0,0.755172]
[1722374868058,0.00704,66211.0,66210.0,0.769172]
[1722374869404,0.00704,66211.0,66210.0,0.755172]
[1722374870007,0.00704,66211.0,66210.0,0.765172]
[1722374870250,0.00704,66211.0,66210.0,1.057241]
[1722374870463,0.00704,66211.0,66210.0,1.071241]
[1722374870636,0.00704,66211.0,66210.0,1.057241]
[1722374871010,0.00704,66211.0,66210.0,1.068241]
[1722374871212,0.00704,66211.0,66210.0,1.057241]
[1722374872469,0.00704,66211.0,66210.0,1.138141]
[1722374872696,0.00704,66211.0,66210.0,1.148141]
[1722374872807,0.00704,66211.0,66210.0,1.178481]
[1722374873012,0.00704,66211.0,66210.0,1.56695]
[1722374873316,0.00518935,66211.0,66210.0,1.58095]
[1722374873528,0.00518935,66211.0,66210.0,2.43245204]
[1722374873723,0.00518935,66211.0,66210.0,2.51845204]
[1722374873923,0.00518935,66211.0,66210.0,2.65797318]
[1722374874166,0.00518935,66211.0,66210.0,2.65888618]
[1722374874344,0.00518935,66211.0,66210.0,2.64488618]
[1722374874681,0.00518935,66211.0,66210.0,2.65888618]
[1722374874934,0.00518935,66211.0,66210.0,2.64488618]
[1722374875126,0.00518935,66211.0,66210.0,2.64488296]
[1722374875358,0.00518935,66211.0,66210.0,2.65888296]
[1722374875563,0.00518935,66211.0,66210.0,2.64488296]
[1722374875564,3.5e-07,66211.0,66210.0,2.64488296]
[1722374875736,3.5e-07,66211.0,66210.0,3.03790196]
[1722374875980,1.0,66218.0,66210.0,3.03790196]
[1722374875981,1.0,66218.0,66217.0,0.372858]
[1722374876111,1.0,66218.0,66217.0,1.43684596]
[1722374876315,0.909391,66218.0,66217.0,2.73594396]
[1722374876514,0.758376,66218.0,66217.0,2.73594396]
[1722374876712,0.71087186,66218.0,66217.0,3.03798096]
[1722374877117,0.00851,66242.0,66240.0,1.066762]
[1722374877339,0.00851,66242.0,66240.0,1.64453504]
[1722374877546,0.00851,66242.0,66240.0,1.94946704]
[1722374877770,0.00851,66242.0,66240.0,1.97146704]
[1722374877968,0.00851,66242.0,66240.0,2.41799904]
[1722374878204,0.00851,66242.0,66240.0,2.46007089]
[1722374878436,0.07534716,66272.0,66251.0,0.1501]
[1722374878641,0.05458497,66270.0,66256.0,0.2173]
[1722374878795,0.05458497,66270.0,66267.0,0.150902]
[1722374878994,0.00851,66273.0,66266.0,0.0625]
[1722374879194,0.00851,66273.0,66271.0,0.150894]
[1722374879195,0.06150069,66273.0,66271.0,0.150894]
[1722374879398,0.06150069,66273.0,66269.0,0.00301768]
[1722374879644,0.06150069,66273.0,66271.0,0.150895]
[1722374879842,0.06150069,66273.0,66270.0,0.301794]
[1722374880043,0.06150069,66273.0,66270.0,0.150897]
[1722374880326,0.00851,66273.0,66272.0,0.452679]
[1722374882213,0.00851,66273.0,66272.0,0.754465]
[1722374883041,0.00851,66273.0,66272.0,1.056251]
[1722374883213,0.00851,66273.0,66272.0,1.060251]
[1722374883414,0.00851,66273.0,66272.0,1.056251]
[1722374883823,0.00851,66273.0,66272.0,1.066251]
[1722374884026,0.00851,66273.0,66272.0,1.056251]
[1722374884425,0.00851,66273.0,66272.0,1.070251]
[1722374884603,0.00851,66273.0,66272.0,1.079251]
[1722374884865,0.00851,66273.0,66272.0,0.754465]
[1722374885030,0.00851,66273.0,66272.0,0.466679]
[1722374885408,0.00851,66273.0,66272.0,0.164893]
[1722374885991,0.00851,66273.0,66272.0,0.014]
[1722374886188,0.00851,66273.0,66270.0,0.150897]
[1722374886417,0.00851,66273.0,66265.0,0.301815]
[1722374886624,0.00851,66273.0,66272.0,0.014]
[1722374886826,0.00851,66273.0,66268.0,0.150901]
[1722374887032,0.00851,66273.0,66261.0,0.31084248]
[1722374887240,0.00851,66273.0,66272.0,0.014]
[1722374887456,0.00851,66273.0,66269.0,0.150899]
[1722374887661,0.00851,66273.0,66261.0,0.00900948]
[1722374887832,0.00851,66273.0,66272.0,0.014]
[1722374888011,0.00851,66273.0,66269.0,0.1509]
[1722374890227,0.1459,66272.0,66266.0,0.30181]
[1722374890432,0.1459,66272.0,66266.0,0.301813]
[1722374890636,0.1459,66272.0,66269.0,0.014]
[1722374891873,0.05287684,66271.0,66269.0,0.014]
[1722374892502,0.128224,66271.0,66251.0,0.301877]
[1722374892674,0.128224,66271.0,66266.0,0.014]
[1722374892986,0.128224,66271.0,66250.0,0.1595]
[1722374892987,0.07534716,66270.0,66255.0,0.15093]
[1722374893184,0.05378775,66269.0,66255.0,0.15093]
[1722374893358,0.05378775,66269.0,66256.0,0.150929]
[1722374893583,0.05378775,66269.0,66254.0,0.301867]
[1722374893584,0.12740914,66269.0,66250.0,0.00905141]
[1722374893790,0.05378775,66269.0,66252.0,0.150937]
[1722374894030,0.20468775,66269.0,66251.0,0.15094]
[1722374894236,0.20468775,66269.0,66250.0,0.301886]
[1722374894237,0.12985339,66268.0,66250.0,0.301886]
[1722374894412,0.05418634,66267.0,66251.0,0.150939]
[1722374894612,0.0781,66266.0,66251.0,0.150939]
[1722374894849,0.05424328,66265.0,66251.0,0.150939]
[1722374895036,0.13326177,66265.0,66251.0,0.150939]
[1722374895819,0.13326177,66265.0,66252.0,0.150938]
[1722374896018,0.13526177,66265.0,66252.0,0.150938]
[1722374896223,0.13526177,66265.0,66249.0,0.00903379]
[1722374896426,0.05441412,66252.0,66224.0,0.0642]
[1722374896685,0.1406,66242.0,66229.0,0.0015542]
[1722374896910,0.1406,66242.0,66228.0,0.060496]
[1722374897148,0.1406,66242.0,66228.0,0.150992]
[1722374897149,0.19238502,66242.0,66228.0,0.150992]
[1722374897357,0.19238502,66242.0,66226.0,0.00914378]
[1722374897556,0.05703462,66241.0,66218.0,0.1695]
[1722374897709,0.05703462,66241.0,66223.0,0.302007]
[1722374897910,0.05703462,66241.0,66227.0,0.150994]
[1722374898266,0.04239368,66240.0,66227.0,0.150994]
[1722374898465,0.05709161,66239.0,66226.0,0.150997]
[1722374898700,0.05709161,66239.0,66223.0,0.302008]
[1722374898872,0.05709161,66239.0,66223.0,0.251004]
[1722374899072,0.05709161,66239.0,66223.0,0.1]
[1722374899320,0.08863485,66239.0,66228.0,0.001]
[1722374899573,0.08863485,66239.0,66223.0,0.251004]
[1722374900131,0.06409161,66239.0,66223.0,0.251003]
[1722374900347,0.06409161,66239.0,66224.0,0.151002]
[1722374900575,0.07109161,66239.0,66224.0,0.151002]
[1722374900788,0.07109161,66239.0,66223.0,0.101]
[1722374901342,0.13422695,66239.0,66223.0,0.101]
[1722374901547,0.28519495,66239.0,66223.0,0.101]
[1722374901960,0.13422695,66239.0,66223.0,0.101]
[1722374902105,0.28519495,66239.0,66223.0,0.101]
[1722374902313,0.27119495,66239.0,66223.0,0.1]
[1722374902517,0.07642632,66238.0,66223.0,0.1]
[1722374902727,0.20840656,66237.0,66223.0,0.1]
[1722374902902,0.20840656,66237.0,66224.0,0.001]
[1722374903266,0.05743356,66237.0,66224.0,0.001]
[1722374903602,0.05743356,66237.0,66223.0,0.1]
[1722374903819,0.05743356,66237.0,66223.0,0.101]
[1722374904244,0.05743356,66237.0,66223.0,0.1]
[1722374905645,0.06243356,66237.0,66223.0,0.1]
[1722374906207,0.05743356,66237.0,66223.0,0.1]
[1722374906633,0.06243356,66237.0,66223.0,0.1]
[1722374907482,0.1277676,66237.0,66223.0,0.1]
[1722374907679,0.06243356,66237.0,66223.0,0.1]
[1722374908781,0.1401,66236.0,66223.0,0.1]
[1722374908992,0.05754754,66235.0,66223.0,0.1]
[1722374910220,0.06054754,66235.0,66223.0,0.1]
[1722374910626,0.1358947,66235.0,66223.0,0.1]
[1722374910828,0.0644,66233.0,66223.0,0.1]
[1722374911032,0.05771853,66232.0,66223.0,0.1]
[1722374911219,0.20870353,66232.0,66223.0,0.1]
[1722374911406,0.05771853,66232.0,66223.0,0.1]
[1722374911607,0.0793,66231.0,66223.0,0.1]
[1722374911809,0.05783253,66230.0,66223.0,0.1]
[1722374912330,0.20882153,66230.0,66223.0,0.1]
[1722374912534,0.0655,66227.0,66223.0,0.1]
[1722374912742,0.05806054,66226.0,66223.0,0.1]
[1722374912943,0.0771,66225.0,66223.0,0.1]
[1722374913105,0.05817454,66224.0,66223.0,0.103]
[1722374913512,0.15374939,66224.0,66223.0,0.1]
[1722374913778,0.15374939,66224.0,66223.0,0.105]
[1722374914170,0.05817454,66224.0,66223.0,0.1]
[1722374915692,0.21017654,66224.0,66223.0,0.109]
[1722374916029,0.51218154,66224.0,66223.0,0.109]
[1722374916336,0.21017654,66224.0,66223.0,0.109]
[1722374916540,0.51218154,66224.0,66223.0,0.109]
[1722374916696,0.97664348,66224.0,66223.0,0.109]
[1722374916907,1.07664348,66224.0,66223.0,0.109]
[1722374917246,0.47263348,66224.0,66223.0,0.109]
[1722374917571,0.77463848,66224.0,66223.0,0.109]
[1722374918924,0.37507654,66224.0,66223.0,0.109]
[1722374919127,0.67608154,66224.0,66223.0,0.1]
[1722374919535,0.68308154,66224.0,66223.0,0.101]
[1722374925210,0.70928231,66224.0,66223.0,0.101]
[1722374925744,0.23007454,66224.0,66223.0,0.101]
[1722374925930,0.38107654,66224.0,66223.0,0.101]
[1722374926133,0.40728256,66224.0,66223.0,0.101]
[1722374926334,0.4072832,66224.0,66223.0,0.101]
[1722374926844,0.7092882,66224.0,66223.0,0.101]
[1722374927888,0.2562812,66224.0,66223.0,0.101]
[1722374928061,0.4072832,66224.0,66223.0,0.101]
[1722374928738,0.2562812,66224.0,66223.0,0.101]
[1722374928903,0.4072832,66224.0,66223.0,0.101]
[1722374929528,0.40685929,66224.0,66223.0,0.101]
[1722374930349,0.25585729,66224.0,66223.0,0.101]
[1722374931753,0.37913461,66224.0,66223.0,0.101]
[1722374931958,0.53013661,66224.0,66223.0,0.101]
[1722374932943,0.53015917,66224.0,66223.0,0.101]
[1722374933959,0.83216417,66224.0,66223.0,0.101]
[1722374936239,0.83232393,66224.0,66223.0,0.101]
[1722374936891,0.83232393,66224.0,66223.0,0.101913]
[1722374938154,0.70904661,66224.0,66223.0,0.101913]
[1722374939249,0.40704161,66224.0,66223.0,0.101913]
[1722374939451,0.38107654,66224.0,66223.0,0.101913]
[1722374939585,0.4069364,66224.0,66223.0,0.101913]
[1722374939779,0.38107654,66224.0,66223.0,0.101913]
[1722374939982,0.40711817,66224.0,66223.0,0.101913]
[1722374940167,0.25611617,66224.0,66223.0,0.101913]
[1722374940380,0.25457212,66224.0,66223.0,0.101913]
[1722374941103,0.03304163,66224.0,66223.0,0.554926]
[1722374941430,0.007,66224.0,66223.0,1.001935]
[1722374941581,0.007,66224.0,66223.0,1.303944]
[1722374942279,0.4782,66239.0,66233.0,0.301962]
[1722374942417,0.05526264,66238.0,66231.0,0.301972]
[1722374942632,0.05526264,66238.0,66233.0,0.150981]
[1722374943164,0.05526264,66238.0,66234.0,0.150978]
[1722374943506,0.05526264,66238.0,66233.0,0.150981]
[1722374943634,0.05526264,66238.0,66234.0,0.150979]
[1722374944249,0.05526264,66238.0,66237.0,0.301946]
[1722374944446,0.00083,66242.0,66241.0,0.150963]
[1722374944649,0.05546587,66242.0,66241.0,0.150963]
[1722374945282,0.05546587,66242.0,66241.0,0.45289]
[1722374945714,0.05546587,66242.0,66241.0,0.753817]
[1722374946284,0.05646587,66242.0,66241.0,0.753817]
[1722374946773,0.05546587,66242.0,66241.0,0.753817]
[1722374946984,0.05546587,66242.0,66241.0,0.755817]
[1722374950991,0.05546587,66242.0,66241.0,1.057744]
[1722374951185,0.05546587,66242.0,66241.0,1.200644]
[1722374951638,0.05546587,66242.0,66241.0,0.898717]
[1722374951848,0.00083,66242.0,66241.0,1.200644]
[1722374952252,0.00083,66242.0,66241.0,1.198644]
[1722374952655,0.00083,66242.0,66241.0,1.211644]
[1722374952991,0.00083,66242.0,66241.0,1.198644]
[1722374953247,0.00083,66242.0,66241.0,1.211644]
[1722374953647,0.00083,66242.0,66241.0,1.198644]
[1722374953847,0.00083,66242.0,66241.0,1.211644]
[1722374955313,0.00083,66242.0,66241.0,1.198644]
[1722374955567,0.00083,66242.0,66241.0,1.512571]
[1722374955913,0.00083,66242.0,66241.0,1.500571]
[1722374956166,0.00083,66242.0,66241.0,1.513571]
[1722374956723,0.00083,66242.0,66241.0,1.500571]
[1722374956939,0.00083,66242.0,66241.0,1.512571]
[1722374958353,0.00083,66242.0,66241.0,1.500571]
[1722374958744,0.00083,66242.0,66241.0,1.514571]
[1722374958949,0.00083,66242.0,66241.0,1.500571]
[1722374959243,0.00083,66242.0,66241.0,1.514571]
[1722374961508,0.00083,66242.0,66241.0,1.500571]
[1722374961708,0.00083,66242.0,66241.0,1.514571]
[1722374962351,0.00083,66242.0,66241.0,1.849498]
[1722374962760,0.00083,66242.0,66241.0,1.867838]
[1722374962937,0.00083,66242.0,66241.0,1.881838]
[1722374963138,0.00083,66242.0,66241.0,1.879838]
[1722374963299,0.00083,66242.0,66241.0,1.881838]
[1722374964531,0.00083,66242.0,66241.0,1.867838]
[1722374964728,0.00083,66242.0,66241.0,1.881838]
[1722374967551,0.00083,66242.0,66241.0,2.05247104]
[1722374968964,0.00083,66242.0,66241.0,2.03938404]